fUST/lending_fUST_20240229
["ID","MTS","AMOUNT","RATE_DAILY","PERIOD"]
[315636883,1709146232885,-500.0,0.00019178,2]
[315636884,1709146232895,-500.0,0.00019178,2]
[315636885,1709146232905,-500.0,0.00019178,2]
[315636886,1709146232915,-500.0,0.00019178,2]
[315636887,1709146232925,-500.0,0.00019178,2]
[315636888,1709146232935,-500.0,0.00019178,2]
[315636889,1709146233070,-500.0,0.00019178,2]
[315636890,1709146233080,-500.35101391,0.00019178,2]
[315636891,1709146233089,-500.0,0.00019178,2]
[315636892,1709146233101,-500.0,0.00019178,2]
[315636893,1709146233110,-253.03741308,0.00019178,2]
[315636894,1709146233120,-253.29640782,0.00019178,2]
[315636895,1709146233129,-500.0,0.00019178,2]
[315636896,1709146233138,-502.255834,0.00019178,2]
[315636897,1709146233148,-500.0,0.00019178,2]
[315636898,1709146233157,-500.0,0.00019178,2]
[315636899,1709146233166,-500.0,0.00019178,2]
[315636900,1709146233175,-452.65778549,0.00019178,2]
[315636901,1709146233185,-426.64264298,0.00019178,2]
[315636902,1709146233195,-500.0,0.00019178,2]
[315636903,1709146233204,-500.0,0.00019178,2]
[315636904,1709146233214,-500.0,0.00019178,2]
[315636905,1709146233223,-500.0,0.00019178,2]
[315636906,1709146233232,-500.0,0.00019178,2]
[315636907,1709146233242,-500.0,0.00019178,2]
[315636908,1709146233251,-500.0,0.00019178,2]
[315636909,1709146233260,-500.0,0.00019178,2]
[315636910,1709146233270,-500.0,0.00019178,2]
[315636911,1709146233280,-500.0,0.00019178,2]
[315636912,1709146233290,-500.0,0.00019178,2]
[315636913,1709146233299,-500.0,0.00019178,2]
[315636914,1709146233308,-500.0,0.00019178,2]
[315636915,1709146233317,-500.0,0.00019178,2]
[315636916,1709146233326,-500.0,0.00019178,2]
[315636917,1709146233336,-500.0,0.00019178,2]
[315636918,1709146233345,-501.09746205,0.00019178,2]
[315636919,1709146233357,-500.0,0.00019178,2]
[315636920,1709146233366,-500.0,0.00019178,2]
[315636921,1709146233375,-500.0,0.00019178,2]
[315636922,1709146233384,-500.0,0.00019178,2]
[315636923,1709146233394,-211.77170673,0.00019178,2]
[315636924,1709146233403,-500.0,0.00019178,2]
[315636925,1709146233412,-500.0,0.00019178,2]
[315636926,1709146233421,-500.0,0.00019178,2]
[315636927,1709146233431,-500.0,0.00019178,2]
[315636928,1709146233440,-500.0,0.00019178,2]
[315636929,1709146233449,-500.0,0.00019178,2]
[315636930,1709146233458,-500.0,0.00019178,2]
[315636931,1709146233468,-500.0,0.00019178,2]
[315636932,1709146233477,-500.0,0.00019178,2]
[315636933,1709146233486,-1401.69,0.00019178,2]
[315636934,1709146233496,-655.44,0.00019178,2]
[315636935,1709146233505,-500.0,0.00019178,2]
[315636936,1709146233515,-500.0,0.00019178,2]
[315636937,1709146233525,-500.0,0.00019178,2]
[315636938,1709146233534,-892.09,0.00019178,2]
[315636939,1709146233543,-500.0,0.00019178,2]
[315636940,1709146233553,-500.0,0.00019178,2]
[315636941,1709146233563,-500.0,0.00019178,2]
[315636942,1709146233573,-500.0,0.00019178,2]
[315636943,1709146233582,-500.0,0.00019178,2]
[315636944,1709146233591,-500.0,0.00019178,2]
[315636945,1709146233602,-542.36889056,0.00019178,2]
[315636946,1709146233612,-788.15,0.00019178,2]
[315636947,1709146233621,-534.55314206,0.00019178,2]
[315636948,1709146233630,-500.0,0.00019178,2]
[315636949,1709146233639,-501.83356104,0.00019178,2]
[315636950,1709146233648,-500.0,0.00019178,2]
[315636951,1709146233658,-594.47,0.00019178,2]
[315636952,1709146233667,-637.78,0.00019178,2]
[315636953,1709146233676,-500.0,0.00019178,2]
[315636954,1709146233685,-561.40138364,0.00019178,2]
[315636955,1709146233694,-500.0,0.00019178,2]
[315636956,1709146233703,-9302.83,0.00019178,2]
[315636957,1709146233712,-291.99726031,0.00019178,2]
[315636958,1709146233722,-562.05,0.00019178,2]
[315636959,1709146233731,-500.0,0.00019178,2]
[315636960,1709146233740,-298.44393123,0.00019178,2]
[315636961,1709146233750,-500.0,0.00019178,2]
[315636962,1709146233759,-500.0,0.00019178,2]
[315636963,1709146233769,-500.0,0.00019178,2]
[315636964,1709146233778,-500.0,0.00019178,2]
[315636965,1709146233787,-298.05466901,0.00019178,2]
[315636966,1709146233796,-5113.2,0.00019178,2]
[315636967,1709146233805,-563.21,0.00019178,2]
[315636968,1709146233815,-239.50914235,0.00019178,2]
[315636969,1709146233911,-260.49085765,0.00019178,2]
[315636970,1709146233921,-392.36261859,0.00019178,2]
[315636971,1709146233932,-107.63738141,0.00019178,2]
[315636972,1709146233943,-500.0,0.00019178,2]
[315636973,1709146233953,-500.0,0.00019178,2]
[315636974,1709146233962,-386.1946199,0.00019178,2]
[315637136,1709146238438,-190.1753801,0.00019178,2]
[315637138,1709146238448,-1568.40341598,0.00019178,2]
[315637141,1709146238460,-1659.83658402,0.00019178,2]
[315637143,1709146238470,-1767.65,0.00019178,2]
[315637145,1709146238479,-500.0,0.00019178,2]
[315637147,1709146238488,-500.0,0.00019178,2]
[315637149,1709146238498,-500.0,0.00019178,2]
[315637151,1709146238507,-500.0,0.00019178,2]
[315637153,1709146238517,-1149.26,0.00019178,2]
[315637155,1709146238526,-500.0,0.00019178,2]
[315637157,1709146238535,-500.0,0.00019178,2]
[315637158,1709146238544,-500.0,0.00019178,2]
[315637161,1709146238554,-500.0,0.00019178,2]
[315637163,1709146238563,-500.0,0.00019178,2]
[315637165,1709146238573,-500.0,0.00019178,2]
[315637167,1709146238583,-500.0,0.00019178,2]
[315637168,1709146238593,-500.0,0.00019178,2]
[315637170,1709146238604,-10021.03,0.00019178,2]
[315637172,1709146238614,-500.0,0.00019178,2]
[315637174,1709146238624,-500.0,0.00019178,2]
[315637176,1709146238634,-500.0,0.00019178,2]
[315637178,1709146238643,-500.0,0.00019178,2]
[315637180,1709146238653,-500.0,0.00019178,2]
[315637182,1709146238662,-916.32,0.00019178,2]
[315637184,1709146238671,-500.0,0.00019178,2]
[315637186,1709146238681,-501.87966091,0.00019178,2]
[315637188,1709146238690,-500.0,0.00019178,2]
[315637190,1709146238699,-500.0,0.00019178,2]
[315637192,1709146238709,-234.73973401,0.00019178,2]
[315637194,1709146238723,-273.75681498,0.00019178,2]
[315637196,1709146238733,-1211.16,0.00019178,2]
[315637198,1709146238742,-500.31919451,0.00019178,2]
[315637200,1709146238751,-500.96626582,0.00019178,2]
[315637202,1709146238760,-500.0,0.00019178,2]
[315637204,1709146238769,-1421.65,0.00019178,2]
[315637206,1709146238778,-1465.66,0.00019178,2]
[315637208,1709146238787,-500.0,0.00019178,2]
[315637210,1709146238797,-730.12,0.00019178,2]
[315637212,1709146238806,-1716.41,0.00019178,2]
[315637214,1709146238816,-515.66855619,0.00019178,2]
[315637216,1709146238825,-500.0,0.00019178,2]
[315637218,1709146238834,-500.0,0.00019178,2]
[315637220,1709146238843,-500.0,0.00019178,2]
[315637222,1709146238856,-500.0,0.00019178,2]
[315637224,1709146238865,-194.15938752,0.00019178,2]
[315637226,1709146238874,-500.0,0.00019178,2]
[315637228,1709146238885,-500.0,0.00019178,2]
[315637230,1709146238894,-712.81,0.00019178,2]
[315637232,1709146238907,-1146.2,0.00019178,2]
[315637234,1709146238916,-500.0,0.00019178,2]
[315637236,1709146238926,-1139.45,0.00019178,2]
[315637238,1709146238939,-500.0,0.00019178,2]
[315637240,1709146238949,-500.0,0.00019178,2]
[315637242,1709146238959,-500.0,0.00019178,2]
[315637244,1709146238969,-500.0,0.00019178,2]
[315637247,1709146238987,-500.0,0.00019178,2]
[315637249,1709146239001,-500.0,0.00019178,2]
[315637251,1709146239011,-500.0,0.00019178,2]
[315637253,1709146239021,-500.0,0.00019178,2]
[315637255,1709146239032,-500.0,0.00019178,2]
[315637257,1709146239042,-500.0,0.00019178,2]
[315637259,1709146239052,-500.0,0.00019178,2]
[315637261,1709146239061,-501.64776374,0.00019178,2]
[315637263,1709146239071,-501.95677342,0.00019178,2]
[315637265,1709146239081,-1346.63,0.00019178,2]
[315637267,1709146239092,-500.0,0.00019178,2]
[315637269,1709146239104,-302.1536889,0.00019178,2]
[315637271,1709146239116,-403.67154212,0.00019178,2]
[315637273,1709146239128,-695.04713142,0.00019178,2]
[315637275,1709146239138,-186.158843,0.00019178,2]
[315637277,1709146239148,-166.666666,0.00019178,2]
[315637279,1709146239158,-242.65436636,0.00019215,2]
[315637281,1709146239168,-242.65436636,0.00019352,2]
[315637284,1709146239179,-620.00582148,0.00019433,2]
[315637286,1709146239189,-500.0,0.00019451,2]
[315637288,1709146239198,-329.73572866,0.00019452,2]
[315637290,1709146239208,-500.0,0.00019452,2]
[315637292,1709146239218,-150.55524313,0.00019452,2]
[315637294,1709146239228,-500.0,0.00019452,2]
[315637296,1709146239238,-500.0,0.00019452,2]
[315637298,1709146239248,-500.0,0.00019452,2]
[315637300,1709146239257,-459.60469095,0.00019452,2]
[315637301,1709146239267,-747.38,0.00019452,2]
[315637303,1709146239276,-339.91896169,0.00019452,2]
[315637305,1709146239286,-500.0,0.00019452,2]
[315637308,1709146239295,-503.21427357,0.00019452,2]
[315637310,1709146239307,-505.77640985,0.00019452,2]
[315637312,1709146239317,-500.0,0.00019452,2]
[315637314,1709146239326,-500.0,0.00019452,2]
[315637316,1709146239336,-502.95365192,0.00019452,2]
[315637318,1709146239346,-271.91794651,0.00019452,2]
[315637320,1709146239357,-500.0,0.00019452,2]
[315637322,1709146239367,-500.0,0.00019452,2]
[315637324,1709146239376,-500.0,0.00019452,2]
[315637326,1709146239385,-500.0,0.00019452,2]
[315637328,1709146239394,-502.02381159,0.00019452,2]
[315637330,1709146239403,-500.0,0.00019452,2]
[315637332,1709146239412,-500.0,0.00019452,2]
[315637334,1709146239421,-541.72852774,0.00019452,2]
[315637336,1709146239431,-500.0,0.00019452,2]
[315637338,1709146239441,-580.25,0.00019452,2]
[315637340,1709146239450,-500.0,0.00019452,2]
[315637342,1709146239460,-1401.69,0.00019452,2]
[315637344,1709146239470,-655.44,0.00019452,2]
[315637346,1709146239480,-500.0,0.00019452,2]
[315637348,1709146239489,-892.09,0.00019452,2]
[315637350,1709146239499,-505.91702289,0.00019452,2]
[315637352,1709146239508,-504.12927821,0.00019452,2]
[315637354,1709146239518,-788.15,0.00019452,2]
[315637356,1709146239528,-594.47,0.00019452,2]
[315637358,1709146239537,-637.78,0.00019452,2]
[315637360,1709146239547,-500.0,0.00019452,2]
[315637362,1709146239556,-9302.83,0.00019452,2]
[315637364,1709146239565,-562.05,0.00019452,2]
[315637366,1709146239575,-500.0,0.00019452,2]
[315637368,1709146239584,-441.27105207,0.00019452,2]
[315637370,1709146239594,-500.0,0.00019452,2]
[315637372,1709146239607,-500.0,0.00019452,2]
[315637374,1709146239617,-5113.2,0.00019452,2]
[315637376,1709146239627,-563.21,0.00019452,2]
[315637378,1709146239637,-500.0,0.00019452,2]
[315637381,1709146239648,-500.0,0.00019452,2]
[315637383,1709146239658,-344.56861591,0.00019452,2]
[315637385,1709146239668,-576.37,0.00019452,2]
[315637387,1709146239678,-3228.24,0.00019452,2]
[315637389,1709146239688,-1767.65,0.00019452,2]
[315637391,1709146239697,-435.3883197,0.00019452,2]
[315637393,1709146239708,-500.0,0.00019452,2]
[315637395,1709146239717,-501.59504109,0.00019452,2]
[315637397,1709146239727,-1149.26,0.00019452,2]
[315637399,1709146239737,-500.0,0.00019452,2]
[315637401,1709146239748,-500.0,0.00019452,2]
[315637403,1709146239757,-500.0,0.00019452,2]
[315637405,1709146239767,-500.0,0.00019452,2]
[315637407,1709146239777,-632.64477132,0.00019452,2]
[315637409,1709146239787,-500.0,0.00019452,2]
[315637410,1709146239796,-500.0,0.00019452,2]
[315637413,1709146239806,-500.0,0.00019452,2]
[315637415,1709146239815,-10021.03,0.00019452,2]
[315637417,1709146239827,-500.0,0.00019452,2]
[315637419,1709146239837,-500.0,0.00019452,2]
[315637421,1709146239846,-500.0,0.00019452,2]
[315637423,1709146239857,-503.03792721,0.00019452,2]
[315637424,1709146239867,-916.32,0.00019452,2]
[315637426,1709146239877,-378.73292585,0.00019452,2]
[315637429,1709146239887,-503.0714665,0.00019452,2]
[315637431,1709146239897,-1211.16,0.00019452,2]
[315637433,1709146239909,-500.0,0.00019452,2]
[315637435,1709146239919,-1421.65,0.00019452,2]
[315637437,1709146239929,-1465.66,0.00019452,2]
[315637439,1709146239943,-414.289761,0.00019452,2]
[315637441,1709146239954,-730.12,0.00019452,2]
[315637443,1709146239965,-1716.41,0.00019452,2]
[315637445,1709146239976,-500.0,0.00019452,2]
[315637447,1709146239985,-500.0,0.00019452,2]
[315637449,1709146239995,-505.30664244,0.00019452,2]
[315637451,1709146240005,-712.81,0.00019452,2]
[315637453,1709146240015,-1146.2,0.00019452,2]
[315637455,1709146240026,-1139.45,0.00019452,2]
[315637457,1709146240037,-500.0,0.00019452,2]
[315637459,1709146240047,-500.0,0.00019452,2]
[315637461,1709146240057,-500.0,0.00019452,2]
[315637463,1709146240067,-501.78305312,0.00019452,2]
[315637465,1709146240077,-500.0,0.00019452,2]
[315637467,1709146240087,-1346.63,0.00019452,2]
[315637469,1709146240097,-226.70885176,0.00019452,2]
[315637471,1709146240110,-242.65436636,0.00019489,2]
[315637473,1709146240119,-153.0,0.00019534,2]
[315637475,1709146240129,-8232.02435619,0.00019625,2]
[315637477,1709146240139,-242.65436636,0.00019626,2]
[315637479,1709146240148,-16499.27349389,0.00019626,2]
[315637481,1709146240159,-166.666666,0.00019627,2]
[315637483,1709146240170,-500.0,0.00019725,2]
[315637485,1709146240180,-500.0,0.00019725,2]
[315637487,1709146240190,-500.0,0.00019726,2]
[315637489,1709146240200,-314.33733289,0.00019726,2]
[315637491,1709146240210,-500.0,0.00019726,2]
[315637493,1709146240220,-747.38,0.00019726,2]
[315637495,1709146240229,-500.0,0.00019726,2]
[315637497,1709146240241,-331.17941528,0.00019726,2]
[315637512,1709146240375,-500.0,0.00019726,2]
[315637514,1709146240386,-500.0,0.00019726,2]
[315637516,1709146240395,-500.0,0.00019726,2]
[315637518,1709146240405,-506.2130211,0.00019726,2]
[315637520,1709146240415,-500.0,0.00019726,2]
[315637522,1709146240425,-500.0,0.00019726,2]
[315637524,1709146240435,-1401.69,0.00019726,2]
[315637526,1709146240445,-655.44,0.00019726,2]
[315637528,1709146240455,-892.09,0.00019726,2]
[315637530,1709146240465,-788.15,0.00019726,2]
[315637533,1709146240475,-594.47,0.00019726,2]
[315637536,1709146240484,-637.78,0.00019726,2]
[315637538,1709146240494,-500.0,0.00019726,2]
[315637540,1709146240503,-9302.83,0.00019726,2]
[315637542,1709146240513,-562.05,0.00019726,2]
[315637544,1709146240523,-617.56,0.00019726,2]
[315637546,1709146240532,-500.0,0.00019726,2]
[315637548,1709146240546,-5113.2,0.00019726,2]
[315637550,1709146240556,-563.21,0.00019726,2]
[315637552,1709146240566,-501.86125293,0.00019726,2]
[315637554,1709146240576,-500.0,0.00019726,2]
[315637556,1709146240586,-576.37,0.00019726,2]
[315637558,1709146240596,-3228.24,0.00019726,2]
[315637560,1709146240608,-1767.65,0.00019726,2]
[315637562,1709146240618,-500.0,0.00019726,2]
[315637564,1709146240628,-1149.26,0.00019726,2]
[315637566,1709146240639,-500.0,0.00019726,2]
[315637568,1709146240649,-500.0,0.00019726,2]
[315637570,1709146240660,-500.0,0.00019726,2]
[315637572,1709146240669,-500.0,0.00019726,2]
[315637574,1709146240679,-500.0,0.00019726,2]
[315637576,1709146240689,-10021.03,0.00019726,2]
[315637578,1709146240698,-500.0,0.00019726,2]
[315637580,1709146240708,-916.32,0.00019726,2]
[315637582,1709146240717,-1211.16,0.00019726,2]
[315637584,1709146240727,-1421.65,0.00019726,2]
[315637586,1709146240737,-1465.66,0.00019726,2]
[315637588,1709146240748,-730.12,0.00019726,2]
[315637590,1709146240757,-1716.41,0.00019726,2]
[315637592,1709146240767,-500.0,0.00019726,2]
[315637594,1709146240776,-500.0,0.00019726,2]
[315637596,1709146240786,-712.81,0.00019726,2]
[315637598,1709146240796,-1146.2,0.00019726,2]
[315637600,1709146240805,-1139.45,0.00019726,2]
[315637602,1709146240815,-500.0,0.00019726,2]
[315637604,1709146240825,-500.0,0.00019726,2]
[315637606,1709146240834,-500.0,0.00019726,2]
[315637608,1709146240844,-500.0,0.00019726,2]
[315637610,1709146240853,-1346.63,0.00019726,2]
[315637612,1709146240866,-16365.79839291,0.00019934,2]
[315637614,1709146240875,-500.0,0.0001996,2]
[315637616,1709146240884,-500.0,0.00019964,2]
[315637618,1709146240894,-500.0,0.00019964,2]
[315637620,1709146240904,-500.0,0.00019988,2]
[315637622,1709146240913,-500.0,0.00019999,2]
[315637624,1709146240923,-500.0,0.00019999,2]
[315637626,1709146240932,-200.0,0.00019999,2]
[315637628,1709146240946,-239.20041238,0.00019999,2]
[315637630,1709146240956,-438.65522136,0.00019999,2]
[315637632,1709146240965,-500.0,0.00019999,2]
[315637634,1709146240975,-301.75544608,0.0002,2]
[315637636,1709146240984,-300.0,0.0002,8]
[315637638,1709146240994,-6000.0,0.0002,3]
[315637640,1709146241004,-500.0,0.0002,2]
[315637642,1709146241014,-747.38,0.0002,2]
[315637644,1709146241023,-500.0,0.0002,2]
[315637646,1709146241034,-500.0,0.0002,2]
[315637648,1709146241043,-500.0,0.0002,2]
[315637650,1709146241053,-1401.69,0.0002,2]
[315637652,1709146241062,-655.44,0.0002,2]
[315637654,1709146241072,-892.09,0.0002,2]
[315637656,1709146241081,-155.0,0.0002,2]
[315637658,1709146241090,-788.15,0.0002,2]
[315637660,1709146241102,-594.47,0.0002,2]
[315637662,1709146241114,-637.78,0.0002,2]
[315637664,1709146241123,-500.0,0.0002,2]
[315637666,1709146241132,-9302.83,0.0002,2]
[315637668,1709146241153,-562.05,0.0002,2]
[315637669,1709146241177,-5113.2,0.0002,2]
[315637673,1709146241196,-563.21,0.0002,2]
[315637675,1709146241207,-217.85395828,0.0002,2]
[315637677,1709146241218,-576.37,0.0002,2]
[315637679,1709146241227,-3177.49418447,0.0002,2]
[315637726,1709146241695,-50.74581553,0.0002,2]
[315637727,1709146241706,-1767.65,0.0002,2]
[315637728,1709146241716,-500.0,0.0002,2]
[315637729,1709146241726,-1149.26,0.0002,2]
[315637730,1709146241736,-500.0,0.0002,2]
[315637731,1709146241745,-500.0,0.0002,2]
[315637732,1709146241755,-500.0,0.0002,2]
[315637733,1709146241765,-500.0,0.0002,2]
[315637734,1709146241774,-10021.03,0.0002,2]
[315637735,1709146241784,-500.0,0.0002,2]
[315637736,1709146241793,-916.32,0.0002,2]
[315637737,1709146241802,-1211.16,0.0002,2]
[315637738,1709146241811,-1421.65,0.0002,2]
[315637739,1709146241821,-1465.66,0.0002,2]
[315637740,1709146241830,-730.12,0.0002,2]
[315637741,1709146241839,-1716.41,0.0002,2]
[315637742,1709146241848,-500.0,0.0002,2]
[315637743,1709146241861,-712.81,0.0002,2]
[315637744,1709146241871,-619.98443447,0.0002,2]
[315638315,1709146246801,-26602.16,0.00019442,3]
[315638317,1709146246811,-526.21556553,0.0002,2]
[315638319,1709146246826,-1139.45,0.0002,2]
[315638321,1709146246837,-329.79,0.0002,2]
[315638323,1709146246848,-500.0,0.0002,2]
[315638325,1709146246858,-500.0,0.0002,2]
[315638327,1709146246875,-457.77052377,0.0002,2]
[315638329,1709146246886,-1346.63,0.0002,2]
[315638331,1709146246897,-153.5626275,0.00020055,2]
[315638333,1709146246914,-153.0,0.00020055,2]
[315638335,1709146246926,-153.0,0.00020055,2]
[315638337,1709146246938,-153.0,0.00020055,2]
[315638339,1709146246950,-153.0,0.00020055,2]
[315638341,1709146246961,-153.0,0.00020055,2]
[315638343,1709146246972,-153.0,0.00020055,2]
[315638345,1709146246983,-153.0,0.00020055,2]
[315638347,1709146246995,-153.0,0.00020055,2]
[315638349,1709146247005,-166.666666,0.00020076,2]
[315638351,1709146247015,-153.4110428,0.00020192,2]
[315638353,1709146247026,-153.0,0.00020192,2]
[315638355,1709146247036,-153.0,0.00020192,2]
[315638357,1709146247046,-196.6153443,0.00020192,2]
[315638359,1709146247055,-200.6348293,0.00020192,2]
[315638361,1709146247065,-153.0,0.00020192,2]
[315638363,1709146247075,-179.4544908,0.00020192,2]
[315638365,1709146247085,-153.0,0.00020192,2]
[315638366,1709146247094,-153.0,0.00020192,2]
[315638368,1709146247104,-153.0,0.00020192,2]
[315638371,1709146247119,-200.6348293,0.00020192,2]
[315638373,1709146247130,-153.0,0.00020192,2]
[315638374,1709146247140,-153.0,0.00020192,2]
[315638376,1709146247150,-153.0,0.00020192,2]
[315638378,1709146247160,-153.0,0.00020192,2]
[315638380,1709146247169,-153.0,0.00020192,2]
[315638382,1709146247179,-153.0,0.00020192,2]
[315638384,1709146247189,-200.6348293,0.00020192,2]
[315638386,1709146247200,-153.0,0.00020192,2]
[315638388,1709146247209,-153.0,0.00020192,2]
[315638390,1709146247219,-153.0,0.00020192,2]
[315638393,1709146247231,-200.6348293,0.00020192,2]
[315638394,1709146247240,-153.0,0.00020192,2]
[315638396,1709146247250,-153.0,0.00020192,2]
[315638398,1709146247260,-200.6348293,0.00020192,2]
[315638400,1709146247269,-153.0,0.00020192,2]
[315638402,1709146247279,-153.0,0.00020192,2]
[315638404,1709146247288,-200.6348293,0.00020192,2]
[315638406,1709146247298,-153.0,0.00020192,2]
[315638408,1709146247307,-153.0,0.00020192,2]
[315638410,1709146247316,-153.0,0.00020192,2]
[315638412,1709146247326,-153.0,0.00020192,2]
[315638414,1709146247337,-200.6348293,0.00020192,2]
[315638416,1709146247346,-153.0,0.00020192,2]
[315638418,1709146247356,-153.0,0.00020192,2]
[315638420,1709146247368,-200.6348293,0.00020192,2]
[315638422,1709146247378,-153.0,0.00020192,2]
[315638424,1709146247388,-153.0,0.00020192,2]
[315638426,1709146247397,-200.6348293,0.00020192,2]
[315638428,1709146247406,-153.0,0.00020192,2]
[315638430,1709146247416,-200.6348293,0.00020192,2]
[315638432,1709146247426,-153.0,0.00020192,2]
[315638434,1709146247436,-153.0,0.00020192,2]
[315638436,1709146247445,-1568.52537675,0.00020199,2]
[315638438,1709146247455,-50000.0,0.00020253,5]
[315638440,1709146247465,-255.70178674,0.00020263,2]
[315638442,1709146247475,-500.0,0.00020272,2]
[315638444,1709146247486,-500.0,0.00020273,2]
[315638446,1709146247495,-747.38,0.00020273,2]
[315638447,1709146247505,-500.0,0.00020273,2]
[315638449,1709146247515,-500.0,0.00020273,2]
[315638451,1709146247524,-312.86,0.00020273,2]
[315638453,1709146247534,-1401.69,0.00020273,2]
[315638455,1709146247544,-655.44,0.00020273,2]
[315638457,1709146247554,-892.09,0.00020273,2]
[315638460,1709146247565,-788.15,0.00020273,2]
[315638461,1709146247575,-594.47,0.00020273,2]
[315638463,1709146247585,-637.78,0.00020273,2]
[315638465,1709146247595,-500.0,0.00020273,2]
[315638467,1709146247605,-9302.83,0.00020273,2]
[315638469,1709146247618,-562.05,0.00020273,2]
[315638471,1709146247628,-563.21,0.00020273,2]
[315638473,1709146247637,-576.37,0.00020273,2]
[315638475,1709146247647,-3228.24,0.00020273,2]
[315638477,1709146247656,-1767.65,0.00020273,2]
[315638479,1709146247666,-439.96268574,0.00020273,2]
[315638481,1709146247675,-1149.26,0.00020273,2]
[315638483,1709146247685,-476.98705101,0.00020273,2]
[315638485,1709146247694,-500.0,0.00020273,2]
[315638487,1709146247703,-500.0,0.00020273,2]
[315638489,1709146247713,-500.0,0.00020273,2]
[315638491,1709146247723,-10021.03,0.00020273,2]
[315638493,1709146247732,-425.82998793,0.00020273,2]
[315638495,1709146247743,-916.32,0.00020273,2]
[315638497,1709146247752,-1211.16,0.00020273,2]
[315638499,1709146247762,-1421.65,0.00020273,2]
[315638501,1709146247771,-1465.66,0.00020273,2]
[315638503,1709146247780,-730.12,0.00020273,2]
[315638504,1709146247790,-1716.41,0.00020273,2]
[315638506,1709146247799,-500.0,0.00020273,2]
[315638508,1709146247809,-712.81,0.00020273,2]
[315638510,1709146247819,-1146.2,0.00020273,2]
[315638512,1709146247828,-1139.45,0.00020273,2]
[315638514,1709146247839,-500.0,0.00020273,2]
[315638516,1709146247848,-500.0,0.00020273,2]
[315638518,1709146247858,-1346.63,0.00020273,2]
[315638520,1709146247871,-1568.52537666,0.00020277,2]
[315638522,1709146247881,-500.0,0.00020298,2]
[315638524,1709146247890,-561.03579599,0.00020298,2]
[315638526,1709146247900,-1000.0,0.00020299,5]
[315638528,1709146247911,-3976.2353811,0.00020299,2]
[315638530,1709146247922,-563.06038041,0.00020299,2]
[315638532,1709146247932,-342.44864365,0.00020299,2]
[315638534,1709146247942,-243.47420794,0.00020299,2]
[315638536,1709146247953,-1363.37975343,0.00020299,2]
[315638538,1709146247964,-16610.26965018,0.00020299,3]
[315638540,1709146247974,-1000.0,0.00020299,5]
[315638542,1709146247984,-4942.60493362,0.00020299,2]
[315638544,1709146247994,-221.48971826,0.00020299,2]
[315638546,1709146248004,-7016.10250292,0.00020299,2]
[315638548,1709146248015,-2804.83075088,0.00020299,2]
[315638550,1709146248026,-20143.52309163,0.00020299,2]
[315638551,1709146248036,-1000.0,0.00020299,5]
[315638553,1709146248047,-1000.0,0.00020299,5]
[315638555,1709146248057,-153.94231753,0.00020299,2]
[315638557,1709146248067,-1590.90301649,0.00020299,2]
[315638559,1709146248077,-666.36770159,0.00020299,2]
[315638561,1709146248087,-1000.0,0.00020299,5]